[Event "Titled Tuesday Blitz October 31 Late 2023"]
[White "Fier, Alexandr"]
[Black "Figorito, Nick"]
[WhiteFideId "2107139"]
[BlackFideId "30923689"]
[WhiteElo "2745"]
[BlackElo "2422"]
[Result "1-0"]
[Round "1"]
[TimeControl "180+1"]
[Date "2023.10.31"]
[WhiteClock "0:02:18"]
[BlackClock "0:00:04"]
[Board "65"]

1. b3 {[%clk 0:03:00]}  Nf6 {[%clk 0:02:59]} 2. Bb2 {[%clk 0:03:01]}  g6 {[%clk 0:02:59]} 3. f4 {[%clk 0:03:01]}  Bg7 {[%clk 0:02:59]} 4. Nf3 {[%clk 0:03:02]}  O-O {[%clk 0:02:57]} 5. e3 {[%clk 0:03:03]}  c5 {[%clk 0:02:55]} 6. Be2 {[%clk 0:03:03]}  Nc6 {[%clk 0:02:56]} 7. O-O {[%clk 0:03:04]}  d6 {[%clk 0:02:57]} 8. Qe1 {[%clk 0:03:04]}  Bg4 {[%clk 0:02:56]} 9. Qh4 {[%clk 0:03:03]}  Nb4 {[%clk 0:02:50]} 10. Na3 {[%clk 0:02:59]}  Bf5 {[%clk 0:02:48]} 11. d3 {[%clk 0:02:57]}  Nc6 {[%clk 0:02:38]} 12. e4 {[%clk 0:02:56]}  Bd7 {[%clk 0:02:31]} 13. f5 {[%clk 0:02:55]}  a6 {[%clk 0:02:19]} 14. Nc4 {[%clk 0:02:54]}  b5 {[%clk 0:02:17]} 15. Ne3 {[%clk 0:02:54]}  Nb4 {[%clk 0:01:43]} 16. a3 {[%clk 0:02:53]}  Nc6 {[%clk 0:01:43]} 17. Ng5 {[%clk 0:02:51]}  Nd4 {[%clk 0:01:38]} 18. Bxd4 {[%clk 0:02:47]}  cxd4 {[%clk 0:01:38]} 19. Nd5 {[%clk 0:02:48]}  h6 {[%clk 0:01:30]} 20. Nxf6+ {[%clk 0:02:48]}  exf6 {[%clk 0:01:24]} 21. Nh3 {[%clk 0:02:48]}  g5 {[%clk 0:01:23]} 22. Qh5 {[%clk 0:02:48]}  d5 {[%clk 0:01:22]} 23. Nf2 {[%clk 0:02:47]}  dxe4 {[%clk 0:01:21]} 24. dxe4 {[%clk 0:02:46]}  Bc6 {[%clk 0:01:20]} 25. Bd3 {[%clk 0:02:47]}  a5 {[%clk 0:01:14]} 26. Ng4 {[%clk 0:02:46]}  Kh7 {[%clk 0:01:12]} 27. e5 {[%clk 0:02:47]}  Qd5 {[%clk 0:01:10]} 28. Rf2 {[%clk 0:02:46]}  Rfe8 {[%clk 0:00:57]} 29. exf6 {[%clk 0:02:46]}  Bf8 {[%clk 0:00:57]} 30. Rf3 {[%clk 0:02:36]}  Re3 {[%clk 0:00:54]} 31. Nxe3 {[%clk 0:02:36]}  dxe3 {[%clk 0:00:55]} 32. Re1 {[%clk 0:02:34]}  Re8 {[%clk 0:00:54]} 33. c4 {[%clk 0:02:23]}  bxc4 {[%clk 0:00:52]} 34. Bxc4 {[%clk 0:02:20]}  Qd2 {[%clk 0:00:48]} 35. Bxf7 {[%clk 0:02:18]}  Qxe1+ {[%clk 0:00:46]} 36. Rf1 {[%clk 0:02:19]}  Qxf1+ {[%clk 0:00:14]} 37. Kxf1 {[%clk 0:02:18]}  e2+ {[%clk 0:00:14]} 38. Ke1 {[%clk 0:02:18]}  Bxa3 {[%clk 0:00:04]} 39. Qg6+ {[%clk 0:02:18]}  Kh8 {[%clk 0:00:04]} 40. Qxh6# {[%clk 0:02:18]} 1-0


[Site "https://www.chess.com"]

[Event "Titled Tuesday Blitz October 31 Late 2023"]
[White "Zakarian, David"]
[Black "DopplerCharlotteDeWitte"]
[WhiteFideId "13301276"]
[WhiteElo "2419"]
[BlackElo "2736"]
[Result "0-1"]
[Round "1"]
[TimeControl "180+1"]
[Date "2023.10.31"]
[WhiteClock "0:00:11"]
[BlackClock "0:00:59"]
[Board "66"]

1. d4 {[%clk 0:03:00]}  d5 {[%clk 0:02:59]} 2. c4 {[%clk 0:03:00]}  e6 {[%clk 0:02:59]} 3. Nc3 {[%clk 0:02:59]}  Nf6 {[%clk 0:02:59]} 4. cxd5 {[%clk 0:03:00]}  exd5 {[%clk 0:03:00]} 5. Bg5 {[%clk 0:03:00]}  Bb4 {[%clk 0:02:59]} 6. e3 {[%clk 0:02:57]}  h6 {[%clk 0:02:59]} 7. Bh4 {[%clk 0:02:57]}  g5 {[%clk 0:02:59]} 8. Bg3 {[%clk 0:02:58]}  Ne4 {[%clk 0:03:00]} 9. Qc2 {[%clk 0:02:33]}  h5 {[%clk 0:02:57]} 10. h3 {[%clk 0:02:09]}  Nxg3 {[%clk 0:02:56]} 11. fxg3 {[%clk 0:02:10]}  Be6 {[%clk 0:02:37]} 12. Bd3 {[%clk 0:02:03]}  Nd7 {[%clk 0:02:35]} 13. Ne2 {[%clk 0:02:00]}  c6 {[%clk 0:02:29]} 14. O-O-O {[%clk 0:01:59]}  Qa5 {[%clk 0:02:24]} 15. Kb1 {[%clk 0:01:57]}  O-O-O {[%clk 0:02:23]} 16. a3 {[%clk 0:01:49]}  Be7 {[%clk 0:02:21]} 17. Rhf1 {[%clk 0:01:40]}  Nf6 {[%clk 0:02:17]} 18. Nc1 {[%clk 0:01:29]}  Kb8 {[%clk 0:02:15]} 19. Nb3 {[%clk 0:01:28]}  Qc7 {[%clk 0:02:15]} 20. Na4 {[%clk 0:01:27]}  Qxg3 {[%clk 0:02:12]} 21. Nbc5 {[%clk 0:01:23]}  Bc8 {[%clk 0:02:01]} 22. Qb3 {[%clk 0:01:17]}  Ka8 {[%clk 0:01:53]} 23. Bf5 {[%clk 0:01:00]}  Qc7 {[%clk 0:01:53]} 24. Bxc8 {[%clk 0:00:37]}  Rxc8 {[%clk 0:01:53]} 25. Rf5 {[%clk 0:00:32]}  b6 {[%clk 0:01:44]} 26. Nd3 {[%clk 0:00:28]}  Ne4 {[%clk 0:01:33]} 27. Rxf7 {[%clk 0:00:26]}  Rhf8 {[%clk 0:01:32]} 28. Rxf8 {[%clk 0:00:19]}  Rxf8 {[%clk 0:01:33]} 29. Ne5 {[%clk 0:00:20]}  Bd6 {[%clk 0:01:31]} 30. Nd3 {[%clk 0:00:15]}  Nf2 {[%clk 0:01:16]} 31. Nc3 {[%clk 0:00:14]}  Nxd1 {[%clk 0:01:13]} 32. Nxd1 {[%clk 0:00:15]}  Rf1 {[%clk 0:01:12]} 33. Ka2 {[%clk 0:00:16]}  Qf7 {[%clk 0:01:06]} 34. Nc3 {[%clk 0:00:16]}  Qf5 {[%clk 0:01:02]} 35. Qc2 {[%clk 0:00:14]}  Kb7 {[%clk 0:01:00]} 36. Nb4 {[%clk 0:00:13]}  Bxb4 {[%clk 0:00:59]} 37. axb4 {[%clk 0:00:11]}  Qxc2 {[%clk 0:00:59]} 0-1


[Site "https://www.chess.com"]

[Event "Titled Tuesday Blitz October 31 Late 2023"]
[White "Tatarinov, Dmitry"]
[Black "Kovalevsky, Stanislav"]
[WhiteFideId "24160067"]
[BlackFideId "13508598"]
[WhiteElo "2735"]
[BlackElo "2419"]
[Result "1-0"]
[Round "1"]
[TimeControl "180+1"]
[Date "2023.10.31"]
[WhiteClock "0:01:20"]
[BlackClock "0:00:11"]
[Board "67"]

1. Nf3 {[%clk 0:02:19]}  d5 {[%clk 0:02:59]} 2. c4 {[%clk 0:02:18]}  c6 {[%clk 0:02:59]} 3. e3 {[%clk 0:02:19]}  Nf6 {[%clk 0:03:00]} 4. d4 {[%clk 0:02:15]}  Bg4 {[%clk 0:02:56]} 5. Qb3 {[%clk 0:02:14]}  Qc7 {[%clk 0:02:56]} 6. Ne5 {[%clk 0:02:12]}  Bf5 {[%clk 0:02:48]} 7. cxd5 {[%clk 0:02:10]}  Nxd5 {[%clk 0:02:42]} 8. Nc3 {[%clk 0:02:06]}  Nxc3 {[%clk 0:02:39]} 9. bxc3 {[%clk 0:02:05]}  e6 {[%clk 0:02:30]} 10. g4 {[%clk 0:02:02]}  Be4 {[%clk 0:02:22]} 11. f3 {[%clk 0:02:02]}  Bg6 {[%clk 0:02:22]} 12. h4 {[%clk 0:02:02]}  f6 {[%clk 0:01:30]} 13. Qxe6+ {[%clk 0:01:52]}  Be7 {[%clk 0:01:30]} 14. Nxg6 {[%clk 0:01:50]}  Qg3+ {[%clk 0:01:29]} 15. Ke2 {[%clk 0:01:47]}  hxg6 {[%clk 0:01:29]} 16. Qc8+ {[%clk 0:01:47]}  Bd8 {[%clk 0:01:18]} 17. Qxb7 {[%clk 0:01:44]}  Rxh4 {[%clk 0:01:04]} 18. Rxh4 {[%clk 0:01:42]}  Qxh4 {[%clk 0:01:05]} 19. Qxa8 {[%clk 0:01:41]}  Qh2+ {[%clk 0:01:05]} 20. Kd3 {[%clk 0:01:41]}  c5 {[%clk 0:00:41]} 21. Qe4+ {[%clk 0:01:37]}  Kf8 {[%clk 0:00:39]} 22. Ba3 {[%clk 0:01:37]}  Be7 {[%clk 0:00:34]} 23. Bxc5 {[%clk 0:01:37]}  Bxc5 {[%clk 0:00:33]} 24. dxc5 {[%clk 0:01:38]}  Nd7 {[%clk 0:00:34]} 25. Qd4 {[%clk 0:01:38]}  Ne5+ {[%clk 0:00:31]} 26. Ke4 {[%clk 0:01:38]}  g5 {[%clk 0:00:20]} 27. Bc4 {[%clk 0:01:29]}  Qh7+ {[%clk 0:00:17]} 28. Kd5 {[%clk 0:01:26]}  Qg8+ {[%clk 0:00:17]} 29. Kd6 {[%clk 0:01:26]}  Nxc4+ {[%clk 0:00:17]} 30. Kc7 {[%clk 0:01:24]}  Qf7+ {[%clk 0:00:15]} 31. Qd7 {[%clk 0:01:25]}  Qg6 {[%clk 0:00:14]} 32. Qc8+ {[%clk 0:01:21]}  Kf7 {[%clk 0:00:14]} 33. Qf5 {[%clk 0:01:21]}  Qh6 {[%clk 0:00:14]} 34. Rd1 {[%clk 0:01:21]}  Ne5 {[%clk 0:00:14]} 35. Rd7+ {[%clk 0:01:19]}  Nxd7 {[%clk 0:00:13]} 36. Kxd7 {[%clk 0:01:19]}  Kg8 {[%clk 0:00:14]} 37. c6 {[%clk 0:01:19]}  Qh2 {[%clk 0:00:13]} 38. c4 {[%clk 0:01:18]}  Qd2+ {[%clk 0:00:13]} 39. Qd5+ {[%clk 0:01:19]}  Qxd5+ {[%clk 0:00:11]} 40. cxd5 {[%clk 0:01:20]} 1-0


[Site "https://www.chess.com"]

[Event "Titled Tuesday Blitz October 31 Late 2023"]
[White "Davidson, Kevin"]
[Black "Harikrishnan.A.Ra"]
[WhiteFideId "2056810"]
[BlackFideId "5081483"]
[WhiteElo "2409"]
[BlackElo "2728"]
[Result "0-1"]
[Round "1"]
[TimeControl "180+1"]
[Date "2023.10.31"]
[WhiteClock "0:00:04"]
[BlackClock "0:00:23"]
[Board "72"]

1. e4 {[%clk 0:03:00]}  c6 {[%clk 0:02:50]} 2. d4 {[%clk 0:03:00]}  d5 {[%clk 0:02:50]} 3. e5 {[%clk 0:03:00]}  Bf5 {[%clk 0:02:47]} 4. h4 {[%clk 0:03:00]}  Qc8 {[%clk 0:02:42]} 5. Be3 {[%clk 0:02:55]}  h5 {[%clk 0:02:35]} 6. Nd2 {[%clk 0:02:48]}  e6 {[%clk 0:02:33]} 7. Nb3 {[%clk 0:02:46]}  Nd7 {[%clk 0:02:27]} 8. Nf3 {[%clk 0:02:41]}  Nh6 {[%clk 0:02:21]} 9. Be2 {[%clk 0:02:33]}  Ng4 {[%clk 0:02:20]} 10. Bf4 {[%clk 0:02:33]}  c5 {[%clk 0:02:16]} 11. c3 {[%clk 0:02:31]}  cxd4 {[%clk 0:01:58]} 12. cxd4 {[%clk 0:02:30]}  Bb4+ {[%clk 0:01:58]} 13. Bd2 {[%clk 0:02:23]}  Be7 {[%clk 0:01:44]} 14. Rc1 {[%clk 0:02:16]}  Qd8 {[%clk 0:01:44]} 15. a3 {[%clk 0:01:58]}  O-O {[%clk 0:01:39]} 16. Bb4 {[%clk 0:01:57]}  Bxb4+ {[%clk 0:01:37]} 17. axb4 {[%clk 0:01:58]}  Qe7 {[%clk 0:01:37]} 18. Qd2 {[%clk 0:01:58]}  Be4 {[%clk 0:01:30]} 19. Ng5 {[%clk 0:01:47]}  f6 {[%clk 0:01:13]} 20. Nxe4 {[%clk 0:01:38]}  dxe4 {[%clk 0:01:12]} 21. f3 {[%clk 0:00:54]}  e3 {[%clk 0:01:04]} 22. Qc3 {[%clk 0:00:52]}  Nh6 {[%clk 0:00:59]} 23. Nc5 {[%clk 0:00:37]}  fxe5 {[%clk 0:00:47]} 24. dxe5 {[%clk 0:00:33]}  Nf5 {[%clk 0:00:43]} 25. Bc4 {[%clk 0:00:25]}  Nxc5 {[%clk 0:00:37]} 26. bxc5 {[%clk 0:00:25]}  Rad8 {[%clk 0:00:36]} 27. g4 {[%clk 0:00:13]}  Nxh4 {[%clk 0:00:26]} 28. gxh5 {[%clk 0:00:04]}  Nxf3+ {[%clk 0:00:25]} 29. Ke2 {[%clk 0:00:04]}  Rd2+ {[%clk 0:00:24]} 30. Kxe3 {[%clk 0:00:04]}  Qg5+ {[%clk 0:00:23]} 31. Ke4 {[%clk 0:00:04]}  Qf4# {[%clk 0:00:23]} 0-1


[Site "https://www.chess.com"]

[Event "Titled Tuesday Blitz October 31 Late 2023"]
[White "Gubajdullin, Alexei"]
[Black "hristos03"]
[WhiteFideId "4141202"]
[WhiteElo "2720"]
[BlackElo "2408"]
[Result "1-0"]
[Round "1"]
[TimeControl "180+1"]
[Date "2023.10.31"]
[WhiteClock "0:01:26"]
[BlackClock "0:00:00"]
[Board "75"]

1. d4 {[%clk 0:03:00]}  Nf6 {[%clk 0:02:57]} 2. Nf3 {[%clk 0:02:59]}  e6 {[%clk 0:02:52]} 3. Bf4 {[%clk 0:02:58]}  c5 {[%clk 0:02:45]} 4. e3 {[%clk 0:02:57]}  Be7 {[%clk 0:02:39]} 5. h3 {[%clk 0:02:56]}  O-O {[%clk 0:02:35]} 6. Be2 {[%clk 0:02:54]}  b6 {[%clk 0:02:28]} 7. O-O {[%clk 0:02:51]}  Bb7 {[%clk 0:02:28]} 8. c3 {[%clk 0:02:49]}  Nc6 {[%clk 0:02:21]} 9. Bh2 {[%clk 0:02:48]}  Re8 {[%clk 0:02:15]} 10. a4 {[%clk 0:02:45]}  Bf8 {[%clk 0:02:08]} 11. Na3 {[%clk 0:02:44]}  d6 {[%clk 0:02:03]} 12. Nc4 {[%clk 0:02:33]}  d5 {[%clk 0:01:50]} 13. Nce5 {[%clk 0:02:32]}  a6 {[%clk 0:01:25]} 14. Nxc6 {[%clk 0:02:23]}  Bxc6 {[%clk 0:01:25]} 15. a5 {[%clk 0:02:22]}  b5 {[%clk 0:01:17]} 16. dxc5 {[%clk 0:02:22]}  Bxc5 {[%clk 0:01:16]} 17. Ne5 {[%clk 0:02:20]}  Bb7 {[%clk 0:01:13]} 18. Nd3 {[%clk 0:02:19]}  Bd6 {[%clk 0:01:12]} 19. Bxd6 {[%clk 0:02:18]}  Qxd6 {[%clk 0:01:13]} 20. Bf3 {[%clk 0:02:10]}  e5 {[%clk 0:01:10]} 21. Nb4 {[%clk 0:02:09]}  Rad8 {[%clk 0:01:05]} 22. Qb3 {[%clk 0:02:08]}  e4 {[%clk 0:00:57]} 23. Be2 {[%clk 0:02:06]}  Nd7 {[%clk 0:00:52]} 24. Rad1 {[%clk 0:02:05]}  Ne5 {[%clk 0:00:47]} 25. Rd2 {[%clk 0:01:54]}  Qc7 {[%clk 0:00:20]} 26. Rfd1 {[%clk 0:01:51]}  Qxa5 {[%clk 0:00:20]} 27. Nxd5 {[%clk 0:01:47]}  Bxd5 {[%clk 0:00:20]} 28. Rxd5 {[%clk 0:01:46]}  Qc7 {[%clk 0:00:18]} 29. R1d4 {[%clk 0:01:39]}  Nc6 {[%clk 0:00:14]} 30. Rxd8 {[%clk 0:01:37]}  Nxd8 {[%clk 0:00:11]} 31. Qd5 {[%clk 0:01:34]}  Nc6 {[%clk 0:00:09]} 32. Rxe4 {[%clk 0:01:32]}  Rd8 {[%clk 0:00:09]} 33. Qc5 {[%clk 0:01:31]}  g6 {[%clk 0:00:07]} 34. Rd4 {[%clk 0:01:30]}  Rc8 {[%clk 0:00:06]} 35. Rd6 {[%clk 0:01:27]}  Qb7 {[%clk 0:00:00]} 36. Bf3 {[%clk 0:01:26]} 1-0


[Site "https://www.chess.com"]

[Event "Titled Tuesday Blitz October 31 Late 2023"]
[White "La Villa Rivas, Marlon Javier"]
[Black "Djokic, Mihailo"]
[WhiteFideId "3519546"]
[BlackFideId "976440"]
[WhiteElo "2406"]
[BlackElo "2719"]
[Result "0-1"]
[Round "1"]
[TimeControl "180+1"]
[Date "2023.10.31"]
[WhiteClock "0:01:37"]
[BlackClock "0:01:21"]
[Board "76"]

1. e4 {[%clk 0:03:00]}  c5 {[%clk 0:02:59]} 2. Nf3 {[%clk 0:03:00]}  d6 {[%clk 0:02:59]} 3. d4 {[%clk 0:03:00]}  cxd4 {[%clk 0:03:00]} 4. Nxd4 {[%clk 0:03:01]}  Nf6 {[%clk 0:03:01]} 5. Nc3 {[%clk 0:03:01]}  g6 {[%clk 0:03:01]} 6. Be3 {[%clk 0:03:01]}  Bg7 {[%clk 0:03:02]} 7. f3 {[%clk 0:03:01]}  O-O {[%clk 0:03:02]} 8. Qd2 {[%clk 0:03:01]}  Nc6 {[%clk 0:03:02]} 9. Bc4 {[%clk 0:03:02]}  Bd7 {[%clk 0:03:02]} 10. h4 {[%clk 0:02:59]}  Rc8 {[%clk 0:03:02]} 11. Bb3 {[%clk 0:02:59]}  h5 {[%clk 0:03:02]} 12. O-O-O {[%clk 0:02:58]}  Ne5 {[%clk 0:03:02]} 13. Bg5 {[%clk 0:02:57]}  Rc5 {[%clk 0:03:02]} 14. g4 {[%clk 0:02:52]}  hxg4 {[%clk 0:03:00]} 15. h5 {[%clk 0:02:51]}  Nxh5 {[%clk 0:02:59]} 16. Rxh5 {[%clk 0:02:51]}  gxh5 {[%clk 0:02:57]} 17. Nd5 {[%clk 0:02:51]}  Rxd5 {[%clk 0:02:55]} 18. Bxd5 {[%clk 0:02:50]}  Qb6 {[%clk 0:02:23]} 19. c3 {[%clk 0:02:12]}  e6 {[%clk 0:02:15]} 20. Bb3 {[%clk 0:02:09]}  Rc8 {[%clk 0:02:07]} 21. f4 {[%clk 0:02:05]}  Nc4 {[%clk 0:02:04]} 22. Bxc4 {[%clk 0:02:04]}  Rxc4 {[%clk 0:02:04]} 23. Nc2 {[%clk 0:02:00]}  Rxe4 {[%clk 0:02:01]} 24. f5 {[%clk 0:01:57]}  exf5 {[%clk 0:01:55]} 25. Bh6 {[%clk 0:01:57]}  Bf6 {[%clk 0:01:40]} 26. Qh2 {[%clk 0:01:51]}  h4 {[%clk 0:01:30]} 27. Rxd6 {[%clk 0:01:48]}  Be5 {[%clk 0:01:30]} 28. Qd2 {[%clk 0:01:41]}  Qg1+ {[%clk 0:01:29]} 29. Qd1 {[%clk 0:01:41]}  Qxd1+ {[%clk 0:01:28]} 30. Rxd1 {[%clk 0:01:37]}  Bc6 {[%clk 0:01:21]} 0-1


[Site "https://www.chess.com"]

[Event "Titled Tuesday Blitz October 31 Late 2023"]
[White "Krallis, Christos"]
[Black "Novikova, Galina"]
[WhiteFideId "4298896"]
[BlackFideId "4157095"]
[WhiteElo "2712"]
[BlackElo "2401"]
[Result "1-0"]
[Round "1"]
[TimeControl "180+1"]
[Date "2023.10.31"]
[WhiteClock "0:00:08"]
[BlackClock "0:00:00"]
[Board "79"]

1. d4 {[%clk 0:02:59]}  Nf6 {[%clk 0:02:57]} 2. Bf4 {[%clk 0:02:58]}  g6 {[%clk 0:02:58]} 3. Nc3 {[%clk 0:02:58]}  d6 {[%clk 0:02:58]} 4. Qd2 {[%clk 0:02:58]}  Bg7 {[%clk 0:02:58]} 5. O-O-O {[%clk 0:02:58]}  c6 {[%clk 0:02:55]} 6. Bh6 {[%clk 0:02:58]}  O-O {[%clk 0:02:33]} 7. Bxg7 {[%clk 0:02:57]}  Kxg7 {[%clk 0:02:34]} 8. e4 {[%clk 0:02:57]}  b5 {[%clk 0:02:33]} 9. f3 {[%clk 0:02:57]}  a5 {[%clk 0:02:32]} 10. g4 {[%clk 0:02:55]}  a4 {[%clk 0:02:31]} 11. h4 {[%clk 0:02:49]}  b4 {[%clk 0:02:32]} 12. Nce2 {[%clk 0:02:49]}  b3 {[%clk 0:02:32]} 13. cxb3 {[%clk 0:02:45]}  axb3 {[%clk 0:02:33]} 14. a3 {[%clk 0:02:45]}  Qa5 {[%clk 0:01:59]} 15. Nc3 {[%clk 0:02:39]}  h5 {[%clk 0:01:34]} 16. g5 {[%clk 0:02:20]}  Nfd7 {[%clk 0:01:24]} 17. f4 {[%clk 0:02:13]}  Nb6 {[%clk 0:01:23]} 18. f5 {[%clk 0:02:11]}  Na4 {[%clk 0:01:16]} 19. Nxa4 {[%clk 0:02:09]}  Qxa4 {[%clk 0:01:02]} 20. f6+ {[%clk 0:02:07]}  exf6 {[%clk 0:01:00]} 21. gxf6+ {[%clk 0:02:08]}  Kh7 {[%clk 0:01:00]} 22. Nf3 {[%clk 0:02:01]}  Bg4 {[%clk 0:00:48]} 23. Ng5+ {[%clk 0:02:01]}  Kg8 {[%clk 0:00:49]} 24. Be2 {[%clk 0:01:43]}  Bxe2 {[%clk 0:00:42]} 25. Qxe2 {[%clk 0:01:44]}  c5 {[%clk 0:00:22]} 26. dxc5 {[%clk 0:01:11]}  Qc6 {[%clk 0:00:21]} 27. Kb1 {[%clk 0:01:10]}  Qxc5 {[%clk 0:00:19]} 28. Rhg1 {[%clk 0:01:06]}  Nc6 {[%clk 0:00:15]} 29. Rc1 {[%clk 0:01:03]}  Nd4 {[%clk 0:00:08]} 30. Qe3 {[%clk 0:00:39]}  Qe5 {[%clk 0:00:07]} 31. Nf3 {[%clk 0:00:33]}  Nxf3 {[%clk 0:00:07]} 32. Qxf3 {[%clk 0:00:32]}  Rfe8 {[%clk 0:00:05]} 33. Qxb3 {[%clk 0:00:31]}  Qxf6 {[%clk 0:00:05]} 34. Rcf1 {[%clk 0:00:30]}  Qe6 {[%clk 0:00:05]} 35. Qc3 {[%clk 0:00:19]}  Qxe4+ {[%clk 0:00:03]} 36. Ka1 {[%clk 0:00:20]}  Qe5 {[%clk 0:00:04]} 37. Qb3 {[%clk 0:00:20]}  Qe6 {[%clk 0:00:04]} 38. Qc3 {[%clk 0:00:19]}  Reb8 {[%clk 0:00:04]} 39. Rf6 {[%clk 0:00:16]}  Qe5 {[%clk 0:00:02]} 40. Qxe5 {[%clk 0:00:12]}  dxe5 {[%clk 0:00:03]} 41. Re1 {[%clk 0:00:12]}  Rb5 {[%clk 0:00:03]} 42. Ref1 {[%clk 0:00:11]}  Ra7 {[%clk 0:00:03]} 43. Rc6 {[%clk 0:00:12]}  Rab7 {[%clk 0:00:03]} 44. Rc2 {[%clk 0:00:11]}  Kg7 {[%clk 0:00:03]} 45. b4 {[%clk 0:00:11]}  f5 {[%clk 0:00:04]} 46. Kb2 {[%clk 0:00:11]}  e4 {[%clk 0:00:04]} 47. Kb3 {[%clk 0:00:12]}  Rd5 {[%clk 0:00:05]} 48. a4 {[%clk 0:00:11]}  Rd3+ {[%clk 0:00:05]} 49. Rc3 {[%clk 0:00:11]}  Rd2 {[%clk 0:00:05]} 50. b5 {[%clk 0:00:11]}  Kf6 {[%clk 0:00:02]} 51. Rc6+ {[%clk 0:00:11]}  Ke5 {[%clk 0:00:02]} 52. Rxg6 {[%clk 0:00:11]}  f4 {[%clk 0:00:03]} 53. Rg5+ {[%clk 0:00:11]}  Kd4 {[%clk 0:00:03]} 54. a5 {[%clk 0:00:10]}  Rc7 {[%clk 0:00:02]} 55. b6 {[%clk 0:00:08]}  Rc3+ {[%clk 0:00:03]} 56. Ka4 {[%clk 0:00:08]}  Ra2+ {[%clk 0:00:03]} 57. Kb5 {[%clk 0:00:08]}  Rb2+ {[%clk 0:00:04]} 58. Ka6 {[%clk 0:00:09]}  f3 {[%clk 0:00:04]} 59. Rb5 {[%clk 0:00:09]}  Ra2 {[%clk 0:00:03]} 60. b7 {[%clk 0:00:08]}  Rca3 {[%clk 0:00:03]} 61. b8=Q {[%clk 0:00:08]}  Ke3 {[%clk 0:00:04]} 62. Qb6+ {[%clk 0:00:08]}  Kf4 {[%clk 0:00:04]} 63. Qh6+ {[%clk 0:00:08]}  Kg3 {[%clk 0:00:03]} 64. Qg5+ {[%clk 0:00:09]}  Kh3 {[%clk 0:00:02]} 65. Rh1+ {[%clk 0:00:08]}  Rh2 {[%clk 0:00:01]} 66. Qf5+ {[%clk 0:00:08]}  Kg3 {[%clk 0:00:00]} 67. Qe5+ {[%clk 0:00:08]} 1-0


[Site "https://www.chess.com"]

[Event "Titled Tuesday Blitz October 31 Late 2023"]
[White "Lebedev, Artem S."]
[Black "Erenberg, Ariel"]
[WhiteFideId "34272747"]
[BlackFideId "2811634"]
[WhiteElo "2400"]
[BlackElo "2712"]
[Result "0-1"]
[Round "1"]
[TimeControl "180+1"]
[Date "2023.10.31"]
[WhiteClock "0:00:03"]
[BlackClock "0:01:08"]
[Board "80"]

1. e4 {[%clk 0:03:00]}  c5 {[%clk 0:02:59]} 2. Nf3 {[%clk 0:03:01]}  Nc6 {[%clk 0:02:58]} 3. d4 {[%clk 0:03:01]}  cxd4 {[%clk 0:02:58]} 4. Nxd4 {[%clk 0:03:02]}  Nf6 {[%clk 0:02:57]} 5. Nc3 {[%clk 0:03:01]}  e5 {[%clk 0:02:54]} 6. Ndb5 {[%clk 0:03:00]}  d6 {[%clk 0:02:54]} 7. Bg5 {[%clk 0:03:01]}  a6 {[%clk 0:02:54]} 8. Na3 {[%clk 0:03:02]}  b5 {[%clk 0:02:53]} 9. Nd5 {[%clk 0:03:03]}  Be7 {[%clk 0:02:53]} 10. Bxf6 {[%clk 0:03:03]}  Bxf6 {[%clk 0:02:53]} 11. c4 {[%clk 0:03:04]}  b4 {[%clk 0:02:53]} 12. Nc2 {[%clk 0:03:04]}  a5 {[%clk 0:02:52]} 13. g3 {[%clk 0:03:05]}  O-O {[%clk 0:02:52]} 14. h4 {[%clk 0:03:05]}  Be6 {[%clk 0:02:52]} 15. Bh3 {[%clk 0:03:05]}  Qb8 {[%clk 0:02:49]} 16. b3 {[%clk 0:03:01]}  Bd8 {[%clk 0:02:40]} 17. Kf1 {[%clk 0:02:58]}  Qa7 {[%clk 0:02:25]} 18. Kg2 {[%clk 0:02:54]}  Bxd5 {[%clk 0:02:08]} 19. Qxd5 {[%clk 0:02:50]}  Nd4 {[%clk 0:02:05]} 20. Nxd4 {[%clk 0:02:45]}  exd4 {[%clk 0:02:05]} 21. Qxd6 {[%clk 0:02:25]}  Bb6 {[%clk 0:02:00]} 22. Qd7 {[%clk 0:02:23]}  Qb8 {[%clk 0:01:51]} 23. Rad1 {[%clk 0:02:15]}  Rd8 {[%clk 0:01:51]} 24. Qb5 {[%clk 0:02:09]}  Qc7 {[%clk 0:01:50]} 25. Bg4 {[%clk 0:02:04]}  Bc5 {[%clk 0:01:47]} 26. Rd3 {[%clk 0:01:56]}  a4 {[%clk 0:01:39]} 27. Re1 {[%clk 0:01:15]}  Ra5 {[%clk 0:01:33]} 28. bxa4 {[%clk 0:00:50]}  Rxb5 {[%clk 0:01:32]} 29. axb5 {[%clk 0:00:51]}  Ra8 {[%clk 0:01:28]} 30. Re2 {[%clk 0:00:51]}  Ra3 {[%clk 0:01:25]} 31. Rxa3 {[%clk 0:00:43]}  bxa3 {[%clk 0:01:26]} 32. e5 {[%clk 0:00:41]}  Bb4 {[%clk 0:01:26]} 33. Bf5 {[%clk 0:00:36]}  Qxc4 {[%clk 0:01:20]} 34. Rc2 {[%clk 0:00:21]}  Qd5+ {[%clk 0:01:20]} 35. f3 {[%clk 0:00:21]}  g6 {[%clk 0:01:20]} 36. Be4 {[%clk 0:00:21]}  Qxb5 {[%clk 0:01:19]} 37. h5 {[%clk 0:00:18]}  Kg7 {[%clk 0:01:17]} 38. hxg6 {[%clk 0:00:15]}  hxg6 {[%clk 0:01:18]} 39. e6 {[%clk 0:00:15]}  fxe6 {[%clk 0:01:17]} 40. Rc7+ {[%clk 0:00:15]}  Kf6 {[%clk 0:01:15]} 41. g4 {[%clk 0:00:15]}  Qe2+ {[%clk 0:01:13]} 42. Kh3 {[%clk 0:00:15]}  Bd6 {[%clk 0:01:12]} 43. Rc2 {[%clk 0:00:15]}  d3 {[%clk 0:01:11]} 44. Rxe2 {[%clk 0:00:07]}  dxe2 {[%clk 0:01:11]} 45. f4 {[%clk 0:00:05]}  Bxf4 {[%clk 0:01:09]} 46. g5+ {[%clk 0:00:04]}  Kxg5 {[%clk 0:01:09]} 47. Bf3 {[%clk 0:00:03]}  e1=Q {[%clk 0:01:08]} 48. Bg2 {[%clk 0:00:03]}  Qg3# {[%clk 0:01:08]} 0-1


[Site "https://www.chess.com"]